[Event "Titled Tuesday Blitz February 14 Late 2023"]
[White "Sanchez, Sebastian Felipe"]
[Black "Nunez V, Gustavo Eduardo"]
[WhiteFideId "4403304"]
[BlackFideId "4403690"]
[WhiteElo "2427"]
[BlackElo "2212"]
[Result "1-0"]
[Round "01"]
[TimeControl "180+2"]
[Date "2023.02.14"]
[WhiteClock "0:01:03"]
[BlackClock "0:00:21"]

1. d4 {[%clk 0:03:00]}  Nf6 {[%clk 0:02:57]} 2. c4 {[%clk 0:02:58]}  g6 {[%clk 0:02:57]} 3. Nc3 {[%clk 0:02:56]}  Bg7 {[%clk 0:02:58]} 4. e4 {[%clk 0:02:56]}  d6 {[%clk 0:02:59]} 5. Nf3 {[%clk 0:02:54]}  O-O {[%clk 0:02:59]} 6. h3 {[%clk 0:02:54]}  e5 {[%clk 0:02:58]} 7. d5 {[%clk 0:02:53]}  Nbd7 {[%clk 0:02:57]} 8. Be3 {[%clk 0:02:51]}  a5 {[%clk 0:02:57]} 9. g4 {[%clk 0:02:51]}  Nc5 {[%clk 0:02:57]} 10. Nd2 {[%clk 0:02:51]}  h6 {[%clk 0:02:55]} 11. Be2 {[%clk 0:02:48]}  Kh7 {[%clk 0:02:54]} 12. h4 {[%clk 0:02:48]}  Nfd7 {[%clk 0:02:49]} 13. h5 {[%clk 0:02:45]}  g5 {[%clk 0:02:49]} 14. Nf1 {[%clk 0:02:45]}  Nf6 {[%clk 0:02:46]} 15. Ng3 {[%clk 0:02:46]}  b6 {[%clk 0:02:40]} 16. b3 {[%clk 0:02:41]}  Bd7 {[%clk 0:02:40]} 17. Rb1 {[%clk 0:02:38]}  Ng8 {[%clk 0:02:37]} 18. Kf1 {[%clk 0:02:36]}  Ne7 {[%clk 0:02:37]} 19. Kg2 {[%clk 0:02:35]}  Qc8 {[%clk 0:02:35]} 20. Re1 {[%clk 0:02:09]}  Bf6 {[%clk 0:02:35]} 21. Kh3 {[%clk 0:02:06]}  Qa6 {[%clk 0:02:25]} 22. Bf1 {[%clk 0:02:04]}  Rfb8 {[%clk 0:02:24]} 23. Qf3 {[%clk 0:02:03]}  Kg7 {[%clk 0:02:16]} 24. a3 {[%clk 0:02:03]}  Qc8 {[%clk 0:02:15]} 25. a4 {[%clk 0:01:57]}  Na6 {[%clk 0:02:12]} 26. Be2 {[%clk 0:01:53]}  Nb4 {[%clk 0:02:12]} 27. Rb2 {[%clk 0:01:52]}  c5 {[%clk 0:02:09]} 28. dxc6 {[%clk 0:01:49]}  Nexc6 {[%clk 0:02:00]} 29. Nb5 {[%clk 0:01:44]}  Qf8 {[%clk 0:01:35]} 30. Rd1 {[%clk 0:01:43]}  Be7 {[%clk 0:01:24]} 31. Rbd2 {[%clk 0:01:42]}  Nd4 {[%clk 0:01:04]} 32. Nxd4 {[%clk 0:01:41]}  exd4 {[%clk 0:01:05]} 33. Bxd4+ {[%clk 0:01:41]}  f6 {[%clk 0:01:04]} 34. Nf5+ {[%clk 0:01:35]}  Bxf5 {[%clk 0:01:04]} 35. Qxf5 {[%clk 0:01:36]}  Qf7 {[%clk 0:00:52]} 36. f4 {[%clk 0:01:36]}  Nc6 {[%clk 0:00:41]} 37. fxg5 {[%clk 0:01:30]}  Nxd4 {[%clk 0:00:41]} 38. gxh6+ {[%clk 0:01:30]}  Kxh6 {[%clk 0:00:41]} 39. Rxd4 {[%clk 0:01:30]}  Rg8 {[%clk 0:00:41]} 40. Rf1 {[%clk 0:01:28]}  Raf8 {[%clk 0:00:38]} 41. Qf4+ {[%clk 0:01:24]}  Rg5 {[%clk 0:00:37]} 42. Rd5 {[%clk 0:01:22]}  Qe6 {[%clk 0:00:32]} 43. Bd3 {[%clk 0:01:18]}  Rg8 {[%clk 0:00:31]} 44. Rf5 {[%clk 0:01:17]}  Kh7 {[%clk 0:00:27]} 45. Rxg5 {[%clk 0:01:14]}  Rxg5 {[%clk 0:00:25]} 46. e5+ {[%clk 0:01:14]}  Kg7 {[%clk 0:00:24]} 47. exf6+ {[%clk 0:01:11]}  Bxf6 {[%clk 0:00:25]} 48. h6+ {[%clk 0:01:09]}  Kf7 {[%clk 0:00:22]} 49. Qxg5 {[%clk 0:01:09]}  Ke7 {[%clk 0:00:18]} 50. Rxf6 {[%clk 0:01:05]}  Qxf6 {[%clk 0:00:17]} 51. Qxf6+ {[%clk 0:01:05]}  Kxf6 {[%clk 0:00:18]} 52. g5+ {[%clk 0:01:05]}  Kxg5 {[%clk 0:00:19]} 53. h7 {[%clk 0:01:05]}  Kf4 {[%clk 0:00:19]} 54. h8=Q {[%clk 0:01:05]}  Ke3 {[%clk 0:00:20]} 55. Bf5 {[%clk 0:01:04]}  Kd2 {[%clk 0:00:20]} 56. Qd4+ {[%clk 0:01:04]}  Kc1 {[%clk 0:00:20]} 57. Qf2 {[%clk 0:01:04]}  Kd1 {[%clk 0:00:20]} 58. Qc2+ {[%clk 0:01:03]}  Ke1 {[%clk 0:00:20]} 59. Bd3 {[%clk 0:01:03]}  d5 {[%clk 0:00:21]} 60. Qe2# {[%clk 0:01:03]} 1-0


[Site "https://www.chess.com"]

[Event "Titled Tuesday Blitz February 14 Late 2023"]
[White "Abdyzhaparov, Aidar"]
[Black "Volkov, Maksim"]
[WhiteFideId "13800361"]
[BlackFideId "54123070"]
[WhiteElo "1978"]
[BlackElo "2258"]
[Result "1-0"]
[Round "01"]
[TimeControl "180+2"]
[Date "2023.02.14"]
[WhiteClock "0:00:41"]
[BlackClock "0:00:19"]

1. Nf3 {[%clk 0:03:00]}  d5 {[%clk 0:02:58]} 2. c4 {[%clk 0:03:01]}  e6 {[%clk 0:02:58]} 3. g3 {[%clk 0:03:01]}  Nf6 {[%clk 0:02:58]} 4. Bg2 {[%clk 0:03:01]}  dxc4 {[%clk 0:02:59]} 5. Qa4+ {[%clk 0:03:01]}  Nbd7 {[%clk 0:02:59]} 6. O-O {[%clk 0:03:00]}  a6 {[%clk 0:02:59]} 7. Nc3 {[%clk 0:03:00]}  c5 {[%clk 0:02:53]} 8. Qxc4 {[%clk 0:02:57]}  b5 {[%clk 0:02:51]} 9. Qb3 {[%clk 0:02:57]}  Bb7 {[%clk 0:02:51]} 10. a4 {[%clk 0:02:57]}  c4 {[%clk 0:02:48]} 11. Qc2 {[%clk 0:02:56]}  b4 {[%clk 0:02:47]} 12. Nd1 {[%clk 0:02:54]}  Rc8 {[%clk 0:02:46]} 13. d3 {[%clk 0:02:53]}  cxd3 {[%clk 0:02:42]} 14. Qxd3 {[%clk 0:02:54]}  Be7 {[%clk 0:02:37]} 15. a5 {[%clk 0:02:44]}  O-O {[%clk 0:02:35]} 16. Be3 {[%clk 0:02:44]}  Nd5 {[%clk 0:02:33]} 17. Nd4 {[%clk 0:02:34]}  Ne5 {[%clk 0:02:26]} 18. Qb1 {[%clk 0:02:26]}  Qd7 {[%clk 0:02:02]} 19. Nf3 {[%clk 0:02:10]}  Nxf3+ {[%clk 0:01:54]} 20. Bxf3 {[%clk 0:02:09]}  Bf6 {[%clk 0:01:54]} 21. Qe4 {[%clk 0:01:35]}  Qb5 {[%clk 0:01:46]} 22. Qg4 {[%clk 0:01:28]}  Rc2 {[%clk 0:01:43]} 23. Rb1 {[%clk 0:01:24]}  Qxa5 {[%clk 0:01:31]} 24. Bg5 {[%clk 0:01:22]}  Bxg5 {[%clk 0:01:23]} 25. Qxg5 {[%clk 0:01:23]}  Rc5 {[%clk 0:01:22]} 26. Qd2 {[%clk 0:01:07]}  Rd8 {[%clk 0:01:20]} 27. Ne3 {[%clk 0:00:56]}  Nc3 {[%clk 0:01:06]} 28. bxc3 {[%clk 0:00:48]}  Rxd2 {[%clk 0:01:01]} 29. cxb4 {[%clk 0:00:49]}  Qc7 {[%clk 0:00:52]} 30. bxc5 {[%clk 0:00:47]}  Bxf3 {[%clk 0:00:52]} 31. exf3 {[%clk 0:00:45]}  g6 {[%clk 0:00:52]} 32. Rfc1 {[%clk 0:00:45]}  a5 {[%clk 0:00:49]} 33. c6 {[%clk 0:00:45]}  Rd6 {[%clk 0:00:38]} 34. Rb7 {[%clk 0:00:44]}  Qc8 {[%clk 0:00:31]} 35. c7 {[%clk 0:00:44]}  Qxb7 {[%clk 0:00:18]} 36. c8=Q+ {[%clk 0:00:45]}  Qxc8 {[%clk 0:00:18]} 37. Rxc8+ {[%clk 0:00:45]}  Kg7 {[%clk 0:00:19]} 38. Ra8 {[%clk 0:00:45]}  Rd2 {[%clk 0:00:18]} 39. Rxa5 {[%clk 0:00:44]}  Rb2 {[%clk 0:00:19]} 40. Kg2 {[%clk 0:00:44]}  h5 {[%clk 0:00:19]} 41. h4 {[%clk 0:00:44]}  Rb4 {[%clk 0:00:19]} 42. f4 {[%clk 0:00:44]}  Kf6 {[%clk 0:00:19]} 43. Ra7 {[%clk 0:00:43]}  Rd4 {[%clk 0:00:19]} 44. Nc2 {[%clk 0:00:42]}  Rc4 {[%clk 0:00:19]} 45. Ne1 {[%clk 0:00:42]}  Rd4 {[%clk 0:00:19]} 46. Nf3 {[%clk 0:00:41]} 1-0


[Site "https://www.chess.com"]

[Event "Titled Tuesday Blitz February 14 Late 2023"]
[White "Domingo Nunez, Ruben"]
[Black "Bernat, David"]
[WhiteFideId "22245570"]
[BlackFideId "2099225"]
[WhiteElo "2416"]
[BlackElo "1862"]
[Result "1-0"]
[Round "01"]
[TimeControl "180+2"]
[Date "2023.02.14"]
[WhiteClock "0:02:53"]
[BlackClock "0:02:56"]

1. e4 {[%clk 0:02:57]}  c5 {[%clk 0:03:00]} 2. d4 {[%clk 0:02:57]}  cxd4 {[%clk 0:03:00]} 3. c3 {[%clk 0:02:57]}  dxc3 {[%clk 0:02:59]} 4. Nxc3 {[%clk 0:02:58]}  e6 {[%clk 0:03:00]} 5. Nf3 {[%clk 0:02:58]}  a6 {[%clk 0:03:00]} 6. Bc4 {[%clk 0:02:59]}  Nc6 {[%clk 0:03:00]} 7. O-O {[%clk 0:02:59]}  b5 {[%clk 0:03:01]} 8. Bb3 {[%clk 0:02:59]}  Bb7 {[%clk 0:03:02]} 9. a4 {[%clk 0:03:00]}  b4 {[%clk 0:03:02]} 10. Nd5 {[%clk 0:03:00]}  Nge7 {[%clk 0:02:59]} 11. Bg5 {[%clk 0:02:59]}  h6 {[%clk 0:02:56]} 12. Bh4 {[%clk 0:02:53]}  g5 {[%clk 0:02:56]} 13. Nf6# {[%clk 0:02:53]} 1-0


[Site "https://www.chess.com"]

[Event "Titled Tuesday Blitz February 14 Late 2023"]
[White "Fiorito, Joaquin"]
[Black "Stachanczyk, Jacek"]
[WhiteFideId "180173"]
[BlackFideId "1116657"]
[WhiteElo "2405"]
[BlackElo "2147"]
[Result "0-1"]
[Round "01"]
[TimeControl "180+2"]
[Date "2023.02.14"]
[WhiteClock "0:01:30"]
[BlackClock "0:01:23"]

1. d4 {[%clk 0:03:00]}  d5 {[%clk 0:02:58]} 2. Nc3 {[%clk 0:03:00]}  Nf6 {[%clk 0:02:56]} 3. Bf4 {[%clk 0:02:59]}  c5 {[%clk 0:02:55]} 4. e4 {[%clk 0:02:59]}  dxe4 {[%clk 0:02:53]} 5. dxc5 {[%clk 0:02:59]}  Qa5 {[%clk 0:02:45]} 6. Qd2 {[%clk 0:02:59]}  a6 {[%clk 0:02:28]} 7. O-O-O {[%clk 0:02:56]}  Nc6 {[%clk 0:02:16]} 8. Kb1 {[%clk 0:02:25]}  Be6 {[%clk 0:02:12]} 9. Qe3 {[%clk 0:02:08]}  g6 {[%clk 0:02:04]} 10. Nge2 {[%clk 0:01:53]}  Bg7 {[%clk 0:02:00]} 11. Nc1 {[%clk 0:01:49]}  Ng4 {[%clk 0:01:31]} 12. Qg3 {[%clk 0:01:30]}  Bxc3 {[%clk 0:01:29]} 13. bxc3 {[%clk 0:01:31]}  Qxc5 {[%clk 0:01:27]} 14. h3 {[%clk 0:01:30]}  Nxf2 {[%clk 0:01:23]} 0-1


[Site "https://www.chess.com"]

[Event "Titled Tuesday Blitz February 14 Late 2023"]
[White "Bogaudinov, Rushan"]
[Black "Di Berardino, Diego Rafael"]
[WhiteFideId "4129288"]
[BlackFideId "2105446"]
[WhiteElo "1939"]
[BlackElo "2479"]
[Result "0-1"]
[Round "01"]
[TimeControl "180+2"]
[Date "2023.02.14"]
[WhiteClock "0:00:01"]
[BlackClock "0:00:17"]

1. d4 {[%clk 0:02:58]}  Nf6 {[%clk 0:02:58]} 2. Nf3 {[%clk 0:02:58]}  g6 {[%clk 0:02:54]} 3. g3 {[%clk 0:02:57]}  Bg7 {[%clk 0:02:54]} 4. Bg2 {[%clk 0:02:58]}  O-O {[%clk 0:02:55]} 5. O-O {[%clk 0:02:57]}  d6 {[%clk 0:02:53]} 6. b3 {[%clk 0:02:56]}  e5 {[%clk 0:02:50]} 7. e3 {[%clk 0:02:56]}  Nbd7 {[%clk 0:02:41]} 8. Bb2 {[%clk 0:02:55]}  e4 {[%clk 0:02:28]} 9. Nfd2 {[%clk 0:02:55]}  Re8 {[%clk 0:02:28]} 10. c4 {[%clk 0:02:55]}  Nf8 {[%clk 0:02:27]} 11. Nc3 {[%clk 0:02:53]}  Bf5 {[%clk 0:02:25]} 12. b4 {[%clk 0:02:49]}  h5 {[%clk 0:02:24]} 13. b5 {[%clk 0:02:39]}  Qd7 {[%clk 0:02:18]} 14. a4 {[%clk 0:02:33]}  Bh3 {[%clk 0:02:16]} 15. Nd5 {[%clk 0:02:19]}  Bxg2 {[%clk 0:02:14]} 16. Kxg2 {[%clk 0:02:20]}  N8h7 {[%clk 0:02:05]} 17. Nxf6+ {[%clk 0:02:14]}  Bxf6 {[%clk 0:01:45]} 18. c5 {[%clk 0:02:02]}  Ng5 {[%clk 0:01:28]} 19. cxd6 {[%clk 0:01:51]}  cxd6 {[%clk 0:01:23]} 20. Rc1 {[%clk 0:01:48]}  Rac8 {[%clk 0:01:07]} 21. Qe2 {[%clk 0:01:46]}  d5 {[%clk 0:01:05]} 22. Rxc8 {[%clk 0:01:22]}  Rxc8 {[%clk 0:01:04]} 23. Rc1 {[%clk 0:01:23]}  Rxc1 {[%clk 0:01:01]} 24. Bxc1 {[%clk 0:01:23]}  h4 {[%clk 0:01:00]} 25. Ba3 {[%clk 0:01:16]}  Qc8 {[%clk 0:00:51]} 26. gxh4 {[%clk 0:01:02]}  Qh3+ {[%clk 0:00:49]} 27. Kg1 {[%clk 0:00:47]}  Nf3+ {[%clk 0:00:31]} 28. Nxf3 {[%clk 0:00:46]}  exf3 {[%clk 0:00:32]} 29. Qf1 {[%clk 0:00:46]}  Qxh4 {[%clk 0:00:32]} 30. Bd6 {[%clk 0:00:37]}  Qe4 {[%clk 0:00:28]} 31. Bb8 {[%clk 0:00:29]}  a6 {[%clk 0:00:25]} 32. bxa6 {[%clk 0:00:28]}  bxa6 {[%clk 0:00:26]} 33. Qxa6 {[%clk 0:00:19]}  Qb1+ {[%clk 0:00:25]} 34. Qf1 {[%clk 0:00:19]}  Qxb8 {[%clk 0:00:26]} 35. Qb5 {[%clk 0:00:16]}  Qc8 {[%clk 0:00:21]} 36. Qf1 {[%clk 0:00:01]}  Bd8 {[%clk 0:00:17]} 0-1


[Site "https://www.chess.com"]

[Event "Titled Tuesday Blitz February 14 Late 2023"]
[White "Koellner, Ruben Gideon"]
[Black "Fajdetic, Hrvoje"]
[WhiteFideId "12993093"]
[BlackFideId "14501945"]
[WhiteElo "2426"]
[BlackElo "2151"]
[Result "0-1"]
[Round "01"]
[TimeControl "180+2"]
[Date "2023.02.14"]
[WhiteClock "0:00:02"]
[BlackClock "0:00:11"]

1. d4 {[%clk 0:02:56]}  e6 {[%clk 0:02:58]} 2. Nf3 {[%clk 0:02:56]}  f5 {[%clk 0:02:58]} 3. Bg5 {[%clk 0:02:55]}  Nf6 {[%clk 0:02:58]} 4. Nc3 {[%clk 0:02:54]}  d5 {[%clk 0:02:55]} 5. e3 {[%clk 0:02:54]}  Bd6 {[%clk 0:02:48]} 6. Ne5 {[%clk 0:02:50]}  O-O {[%clk 0:02:47]} 7. f4 {[%clk 0:02:39]}  Nbd7 {[%clk 0:02:38]} 8. Be2 {[%clk 0:02:37]}  c5 {[%clk 0:02:27]} 9. Nb5 {[%clk 0:02:28]}  Bb8 {[%clk 0:02:19]} 10. O-O {[%clk 0:02:19]}  a6 {[%clk 0:02:12]} 11. Na3 {[%clk 0:02:18]}  Qe8 {[%clk 0:01:48]} 12. Nxd7 {[%clk 0:02:04]}  Nxd7 {[%clk 0:01:42]} 13. c4 {[%clk 0:01:53]}  dxc4 {[%clk 0:01:21]} 14. Nxc4 {[%clk 0:01:39]}  b5 {[%clk 0:01:21]} 15. Ne5 {[%clk 0:01:19]}  Nxe5 {[%clk 0:01:17]} 16. dxe5 {[%clk 0:01:07]}  Bb7 {[%clk 0:01:12]} 17. Bf3 {[%clk 0:01:06]}  Qc8 {[%clk 0:00:59]} 18. Rc1 {[%clk 0:00:54]}  Bxf3 {[%clk 0:00:53]} 19. Qxf3 {[%clk 0:00:55]}  Ba7 {[%clk 0:00:50]} 20. Rfd1 {[%clk 0:00:42]}  Qc7 {[%clk 0:00:37]} 21. Rd6 {[%clk 0:00:37]}  h6 {[%clk 0:00:31]} 22. Bh4 {[%clk 0:00:33]}  Rae8 {[%clk 0:00:24]} 23. Rcd1 {[%clk 0:00:22]}  c4 {[%clk 0:00:23]} 24. Rxa6 {[%clk 0:00:13]}  Qc5 {[%clk 0:00:19]} 25. Bf2 {[%clk 0:00:07]}  Rd8 {[%clk 0:00:15]} 26. Rad6 {[%clk 0:00:05]}  Rxd6 {[%clk 0:00:15]} 27. exd6 {[%clk 0:00:05]}  Rd8 {[%clk 0:00:13]} 28. d7 {[%clk 0:00:04]}  Qc7 {[%clk 0:00:12]} 29. e4 {[%clk 0:00:02]}  Bxf2+ {[%clk 0:00:11]} 30. Qxf2 {[%clk 0:00:02]}  Rxd7 {[%clk 0:00:10]} 31. Rxd7 {[%clk 0:00:03]}  Qxd7 {[%clk 0:00:11]} 32. exf5 {[%clk 0:00:03]}  exf5 {[%clk 0:00:11]} 33. h3 {[%clk 0:00:02]}  Qd1+ {[%clk 0:00:11]} 34. Kh2 {[%clk 0:00:02]}  Qd3 {[%clk 0:00:12]} 35. a3 {[%clk 0:00:02]}  c3 {[%clk 0:00:11]} 36. bxc3 {[%clk 0:00:02]}  Qxc3 {[%clk 0:00:11]} 0-1


[Site "https://www.chess.com"]

[Event "Titled Tuesday Blitz February 14 Late 2023"]
[White "Piriflillo"]
[Black "Vlassov, Nikolai"]
[BlackFideId "4103360"]
[WhiteElo "2322"]
[BlackElo "2283"]
[Result "0-1"]
[Round "01"]
[TimeControl "180+2"]
[Date "2023.02.14"]
[WhiteClock "0:00:39"]
[BlackClock "0:01:20"]

1. d4 {[%clk 0:02:59]}  Nf6 {[%clk 0:02:59]} 2. c4 {[%clk 0:02:58]}  Nc6 {[%clk 0:02:58]} 3. Nf3 {[%clk 0:02:57]}  e6 {[%clk 0:02:58]} 4. Nc3 {[%clk 0:02:56]}  Bb4 {[%clk 0:02:58]} 5. Qc2 {[%clk 0:02:49]}  d6 {[%clk 0:02:57]} 6. Bd2 {[%clk 0:02:45]}  O-O {[%clk 0:02:57]} 7. a3 {[%clk 0:02:41]}  Bxc3 {[%clk 0:02:57]} 8. Bxc3 {[%clk 0:02:42]}  Qe7 {[%clk 0:02:57]} 9. e3 {[%clk 0:02:39]}  e5 {[%clk 0:02:58]} 10. Be2 {[%clk 0:02:32]}  Bg4 {[%clk 0:02:57]} 11. O-O {[%clk 0:02:31]}  e4 {[%clk 0:02:50]} 12. Ne1 {[%clk 0:02:30]}  Bxe2 {[%clk 0:02:41]} 13. Qxe2 {[%clk 0:02:30]}  d5 {[%clk 0:02:41]} 14. b4 {[%clk 0:02:28]}  Qe6 {[%clk 0:02:34]} 15. f3 {[%clk 0:02:15]}  dxc4 {[%clk 0:02:27]} 16. fxe4 {[%clk 0:02:07]}  Nxe4 {[%clk 0:02:27]} 17. Rc1 {[%clk 0:02:05]}  Ne7 {[%clk 0:02:23]} 18. Nf3 {[%clk 0:02:02]}  b5 {[%clk 0:02:15]} 19. a4 {[%clk 0:01:52]}  a6 {[%clk 0:02:13]} 20. Be1 {[%clk 0:01:49]}  Nd5 {[%clk 0:02:10]} 21. Nd2 {[%clk 0:01:38]}  Rae8 {[%clk 0:01:53]} 22. Qf3 {[%clk 0:01:21]}  f5 {[%clk 0:01:46]} 23. axb5 {[%clk 0:01:14]}  axb5 {[%clk 0:01:45]} 24. Bg3 {[%clk 0:01:08]}  Nxd2 {[%clk 0:01:40]} 25. Qf2 {[%clk 0:01:04]}  Nxf1 {[%clk 0:01:38]} 26. Rxf1 {[%clk 0:01:03]}  Qxe3 {[%clk 0:01:38]} 27. Be5 {[%clk 0:01:00]}  Qxf2+ {[%clk 0:01:36]} 28. Rxf2 {[%clk 0:01:00]}  c3 {[%clk 0:01:35]} 29. Rc2 {[%clk 0:00:59]}  c6 {[%clk 0:01:31]} 30. Kf2 {[%clk 0:00:52]}  g5 {[%clk 0:01:29]} 31. g3 {[%clk 0:00:49]}  Rf7 {[%clk 0:01:27]} 32. h4 {[%clk 0:00:48]}  h6 {[%clk 0:01:26]} 33. hxg5 {[%clk 0:00:47]}  hxg5 {[%clk 0:01:27]} 34. Kf3 {[%clk 0:00:43]}  Ra7 {[%clk 0:01:24]} 35. Rh2 {[%clk 0:00:42]}  g4+ {[%clk 0:01:21]} 36. Kg2 {[%clk 0:00:38]}  Ra2+ {[%clk 0:01:21]} 37. Kg1 {[%clk 0:00:39]}  Rxh2 {[%clk 0:01:20]} 38. Kxh2 {[%clk 0:00:40]}  c2 {[%clk 0:01:21]} 39. Bf4 {[%clk 0:00:40]}  Nxf4 {[%clk 0:01:20]} 40. gxf4 {[%clk 0:00:39]}  c1=Q {[%clk 0:01:20]} 0-1


[Site "https://www.chess.com"]

[Event "Titled Tuesday Blitz February 14 Late 2023"]
[White "Janaszak, Dawid"]
[Black "Buscar, Michael"]
[WhiteFideId "1119206"]
[BlackFideId "2603616"]
[WhiteElo "2316"]
[BlackElo "2041"]
[Result "1-0"]
[Round "01"]
[TimeControl "180+2"]
[Date "2023.02.14"]
[WhiteClock "0:00:10"]
[BlackClock "0:00:03"]

1. e4 {[%clk 0:03:00]}  c5 {[%clk 0:02:59]} 2. Nc3 {[%clk 0:02:58]}  Nc6 {[%clk 0:02:59]} 3. Bb5 {[%clk 0:02:57]}  g6 {[%clk 0:02:58]} 4. Bxc6 {[%clk 0:02:57]}  dxc6 {[%clk 0:02:57]} 5. d3 {[%clk 0:02:57]}  Bg7 {[%clk 0:02:57]} 6. Be3 {[%clk 0:02:57]}  b6 {[%clk 0:02:57]} 7. Qd2 {[%clk 0:02:57]}  Nf6 {[%clk 0:02:55]} 8. Bh6 {[%clk 0:02:57]}  O-O {[%clk 0:02:56]} 9. Nge2 {[%clk 0:02:55]}  Ne8 {[%clk 0:02:56]} 10. h4 {[%clk 0:02:54]}  Bxh6 {[%clk 0:02:43]} 11. Qxh6 {[%clk 0:02:55]}  Ng7 {[%clk 0:02:43]} 12. Ng3 {[%clk 0:02:49]}  f6 {[%clk 0:02:39]} 13. f4 {[%clk 0:02:35]}  Bg4 {[%clk 0:02:37]} 14. f5 {[%clk 0:02:30]}  gxf5 {[%clk 0:02:32]} 15. exf5 {[%clk 0:02:06]}  Qd6 {[%clk 0:02:19]} 16. Nce4 {[%clk 0:01:59]}  Qe5 {[%clk 0:02:19]} 17. O-O {[%clk 0:01:56]}  Nxf5 {[%clk 0:02:07]} 18. Nxf5 {[%clk 0:01:36]}  Bxf5 {[%clk 0:02:07]} 19. Rae1 {[%clk 0:01:28]}  Qd4+ {[%clk 0:01:59]} 20. Kh1 {[%clk 0:01:27]}  Qd7 {[%clk 0:01:36]} 21. Rf3 {[%clk 0:01:13]}  Rf7 {[%clk 0:01:30]} 22. Rg3+ {[%clk 0:01:02]}  Kh8 {[%clk 0:01:30]} 23. Qf4 {[%clk 0:00:55]}  Bxe4 {[%clk 0:01:20]} 24. Rxe4 {[%clk 0:00:55]}  e5 {[%clk 0:01:17]} 25. Qh6 {[%clk 0:00:50]}  Rg8 {[%clk 0:01:15]} 26. Ree3 {[%clk 0:00:48]}  Rxg3 {[%clk 0:01:03]} 27. Rxg3 {[%clk 0:00:48]}  Qf5 {[%clk 0:01:03]} 28. Qe3 {[%clk 0:00:41]}  Rg7 {[%clk 0:01:00]} 29. Rf3 {[%clk 0:00:37]}  Qg4 {[%clk 0:00:55]} 30. Qf2 {[%clk 0:00:38]}  Rg6 {[%clk 0:00:48]} 31. Rxf6 {[%clk 0:00:36]}  Kg7 {[%clk 0:00:41]} 32. Rf7+ {[%clk 0:00:35]}  Kg8 {[%clk 0:00:35]} 33. Rxa7 {[%clk 0:00:32]}  Qf4 {[%clk 0:00:20]} 34. Qxf4 {[%clk 0:00:32]}  exf4 {[%clk 0:00:21]} 35. Rb7 {[%clk 0:00:32]}  b5 {[%clk 0:00:20]} 36. Rc7 {[%clk 0:00:27]}  Re6 {[%clk 0:00:19]} 37. b3 {[%clk 0:00:25]}  h6 {[%clk 0:00:17]} 38. a4 {[%clk 0:00:26]}  c4 {[%clk 0:00:16]} 39. dxc4 {[%clk 0:00:25]}  bxa4 {[%clk 0:00:17]} 40. bxa4 {[%clk 0:00:25]}  Re1+ {[%clk 0:00:16]} 41. Kh2 {[%clk 0:00:25]}  Ra1 {[%clk 0:00:17]} 42. Rxc6 {[%clk 0:00:25]}  Rxa4 {[%clk 0:00:17]} 43. Kh3 {[%clk 0:00:24]}  Kg7 {[%clk 0:00:17]} 44. Kg4 {[%clk 0:00:24]}  Ra2 {[%clk 0:00:16]} 45. Kxf4 {[%clk 0:00:23]}  Rxc2 {[%clk 0:00:17]} 46. g3 {[%clk 0:00:23]}  Rc1 {[%clk 0:00:17]} 47. c5 {[%clk 0:00:23]}  Rc4+ {[%clk 0:00:17]} 48. Kf5 {[%clk 0:00:23]}  Rc3 {[%clk 0:00:17]} 49. Rc7+ {[%clk 0:00:23]}  Kg8 {[%clk 0:00:17]} 50. g4 {[%clk 0:00:24]}  Rc4 {[%clk 0:00:17]} 51. g5 {[%clk 0:00:19]}  hxg5 {[%clk 0:00:17]} 52. hxg5 {[%clk 0:00:19]}  Kf8 {[%clk 0:00:16]} 53. g6 {[%clk 0:00:18]}  Rc1 {[%clk 0:00:17]} 54. Ke5 {[%clk 0:00:15]}  Kg8 {[%clk 0:00:12]} 55. Kd5 {[%clk 0:00:15]}  Rg1 {[%clk 0:00:11]} 56. g7 {[%clk 0:00:14]}  Rd1+ {[%clk 0:00:10]} 57. Kc6 {[%clk 0:00:14]}  Rb1 {[%clk 0:00:10]} 58. Kd7 {[%clk 0:00:13]}  Kxg7 {[%clk 0:00:10]} 59. c6 {[%clk 0:00:13]}  Kf6 {[%clk 0:00:08]} 60. Rc8 {[%clk 0:00:13]}  Rd1+ {[%clk 0:00:07]} 61. Kc7 {[%clk 0:00:14]}  Ke7 {[%clk 0:00:07]} 62. Rh8 {[%clk 0:00:13]}  Rb1 {[%clk 0:00:06]} 63. Rh7+ {[%clk 0:00:14]}  Ke8 {[%clk 0:00:06]} 64. Kc8 {[%clk 0:00:14]}  Rc1 {[%clk 0:00:04]} 65. c7 {[%clk 0:00:14]}  Rb1 {[%clk 0:00:05]} 66. Rh5 {[%clk 0:00:13]}  Ke7 {[%clk 0:00:04]} 67. Re5+ {[%clk 0:00:12]}  Kd6 {[%clk 0:00:04]} 68. Re2 {[%clk 0:00:11]}  Rh1 {[%clk 0:00:04]} 69. Rd2+ {[%clk 0:00:11]}  Kc6 {[%clk 0:00:05]} 70. Rc2+ {[%clk 0:00:11]}  Kb6 {[%clk 0:00:05]} 71. Kb8 {[%clk 0:00:11]}  Rb1 {[%clk 0:00:02]} 72. c8=Q {[%clk 0:00:11]}  Ka5+ {[%clk 0:00:01]} 73. Ka7 {[%clk 0:00:11]}  Rb6 {[%clk 0:00:01]} 74. Ra2+ {[%clk 0:00:10]}  Kb5 {[%clk 0:00:01]} 75. Rb2+ {[%clk 0:00:10]}  Ka5 {[%clk 0:00:02]} 76. Qc5+ {[%clk 0:00:11]}  Ka4 {[%clk 0:00:03]} 77. Qc4+ {[%clk 0:00:10]}  Ka5 {[%clk 0:00:03]} 78. Qa2# {[%clk 0:00:10]} 1-0


[Site "https://www.chess.com"]

[Event "Titled Tuesday Blitz February 14 Late 2023"]
[White "Saveliev, Alexei"]
[Black "Adury, Anant"]
[WhiteFideId "24128546"]
[BlackFideId "30964687"]
[WhiteElo "2385"]
[BlackElo "2123"]
[Result "1-0"]
[Round "01"]
[TimeControl "180+2"]
[Date "2023.02.14"]
[WhiteClock "0:01:32"]
[BlackClock "0:01:16"]

1. c4 {[%clk 0:02:55]}  Nf6 {[%clk 0:02:59]} 2. Nc3 {[%clk 0:02:55]}  c6 {[%clk 0:02:59]} 3. e4 {[%clk 0:02:50]}  e5 {[%clk 0:02:54]} 4. Nf3 {[%clk 0:02:49]}  Qc7 {[%clk 0:02:50]} 5. d3 {[%clk 0:02:48]}  Bc5 {[%clk 0:02:49]} 6. Be2 {[%clk 0:02:49]}  a5 {[%clk 0:02:48]} 7. O-O {[%clk 0:02:49]}  d6 {[%clk 0:02:43]} 8. h3 {[%clk 0:02:49]}  h6 {[%clk 0:02:43]} 9. Be3 {[%clk 0:02:48]}  Be6 {[%clk 0:02:36]} 10. Qd2 {[%clk 0:02:44]}  Nbd7 {[%clk 0:02:27]} 11. d4 {[%clk 0:02:42]}  exd4 {[%clk 0:02:25]} 12. Nxd4 {[%clk 0:02:43]}  Bxd4 {[%clk 0:02:20]} 13. Bxd4 {[%clk 0:02:44]}  Ne5 {[%clk 0:02:16]} 14. b3 {[%clk 0:02:42]}  g5 {[%clk 0:02:12]} 15. Rac1 {[%clk 0:02:27]}  Nfd7 {[%clk 0:02:01]} 16. f4 {[%clk 0:02:20]}  gxf4 {[%clk 0:02:01]} 17. Rxf4 {[%clk 0:02:13]}  O-O-O {[%clk 0:01:54]} 18. Nd5 {[%clk 0:02:09]}  Bxd5 {[%clk 0:01:44]} 19. cxd5 {[%clk 0:02:10]}  c5 {[%clk 0:01:44]} 20. Bg4 {[%clk 0:01:58]}  Kb8 {[%clk 0:01:41]} 21. Bxd7 {[%clk 0:01:54]}  Qxd7 {[%clk 0:01:27]} 22. Bxe5 {[%clk 0:01:54]}  dxe5 {[%clk 0:01:28]} 23. Rf5 {[%clk 0:01:53]}  Rhg8 {[%clk 0:01:27]} 24. Rxc5 {[%clk 0:01:46]}  b6 {[%clk 0:01:21]} 25. Rc3 {[%clk 0:01:39]}  Rg5 {[%clk 0:01:17]} 26. Rxg5 {[%clk 0:01:34]}  hxg5 {[%clk 0:01:18]} 27. Qxg5 {[%clk 0:01:34]}  Qd6 {[%clk 0:01:16]} 28. Rc6 {[%clk 0:01:33]}  Qb4 {[%clk 0:01:16]} 29. Qxd8+ {[%clk 0:01:32]}  Kb7 {[%clk 0:01:16]} 1-0


[Site "https://www.chess.com"]